[Event "Fast Chess"]
[Site "ChessKid.com"]
[Date "2020.05.06"]
[Round "3"]
[White "Halimi, Dorian"]
[Black "Georgiev, Maximilian"]
[Result "0-1"]
[ECO "C57"]
[WhiteElo "1228"]
[BlackElo "1307"]
[PlyCount "78"]
[EventDate "2020.??.??"]
[TimeControl "900"]
[WhiteClock "0:11:46"]
[BlackClock "0:11:15"]

1. e4 {[%emt 0:00:04]} e5 {[%emt 0:00:01]} 2. Bc4 {[%emt 0:00:04]} Nc6 {
[%emt 0:00:01]} 3. Nf3 {[%emt 0:00:02]} Nf6 {[%emt 0:00:04]} 4. Ng5 {[%emt 0:
00:01]} d5 {[%emt 0:00:04]} 5. exd5 {[%emt 0:00:06]} Nxd5 {[%emt 0:00:02]} 6.
Bxd5 {[%emt 0:00:01]} Qxg5 {[%emt 0:00:04]} 7. Qf3 {[%emt 0:00:04]} f6 {
[%emt 0:00:10]} 8. Nc3 {[%emt 0:00:05]} Nd4 {[%emt 0:00:03]} 9. Qd3 {[%emt 0:
00:20]} c6 {[%emt 0:00:05]} 10. Be4 {[%emt 0:00:11]} Bf5 {[%emt 0:00:07]} 11.
O-O {[%emt 0:00:09]} Bh3 {[%emt 0:00:05]} 12. Qxh3 {[%emt 0:00:12]} f5 {
[%emt 0:00:04]} 13. Bxf5 {[%emt 0:00:11]} Nxf5 {[%emt 0:00:05]} 14. Re1 {
[%emt 0:00:02]} O-O-O {[%emt 0:00:06]} 15. Rxe5 {[%emt 0:00:04]} g6 {[%emt 0:
00:10]} 16. Ne4 {[%emt 0:00:05]} Qf4 {[%emt 0:00:19]} 17. Qc3 {[%emt 0:00:19]}
Bg7 {[%emt 0:00:19]} 18. Qe3 {[%emt 0:00:31]} Nxe3 {[%emt 0:00:03]} 19. fxe3 {
[%emt 0:00:02]} Qxe5 {[%emt 0:00:03]} 20. Ng3 {[%emt 0:00:05]} Rd5 {[%emt 0:00:
15]} 21. d4 {[%emt 0:00:04]} Rxd4 {[%emt 0:00:15]} 22. exd4 {[%emt 0:00:03]}
Qxd4+ {[%emt 0:00:01]} 23. Kf1 {[%emt 0:00:14]} Rf8+ {[%emt 0:00:03]} 24. Ke1 {
[%emt 0:00:07]} Qf2+ {[%emt 0:00:02]} 25. Kd1 {[%emt 0:00:03]} Rd8+ {[%emt 0:
00:03]} 26. Bd2 {[%emt 0:00:04]} Qg1+ {[%emt 0:00:02]} 27. Ke2 {[%emt 0:00:05]}
Qxa1 {[%emt 0:00:01]} 28. Ne4 {[%emt 0:00:04]} Qxb2 {[%emt 0:00:04]} 29. Bg5 {
[%emt 0:00:03]} Qxc2+ {[%emt 0:00:06]} 30. Nd2 {[%emt 0:00:02]} Rxd2+ {[%emt 0:
00:04]} 31. Bxd2 {[%emt 0:00:02]} Bh6 {[%emt 0:00:02]} 32. a3 {[%emt 0:00:07]}
Qxd2+ {[%emt 0:00:02]} 33. Kf3 {[%emt 0:00:01]} Qc3+ {[%emt 0:00:02]} 34. Ke4 {
[%emt 0:00:01]} Qxa3 {[%emt 0:00:00]} 35. Ke5 {[%emt 0:00:01]} Qb2+ {[%emt 0:
00:07]} 36. Ke6 {[%emt 0:00:02]} Qxg2 {[%emt 0:00:00]} 37. Kf7 {[%emt 0:00:03]}
Qxh2 {[%emt 0:00:03]} 38. Kg8 {[%emt 0:00:01]} Qc7 {[%emt 0:00:05]} 39. Kh8 {
[%emt 0:00:02]} Qg7# {[%emt 0:00:01] KeenOrangeTeeth won by checkmate} 0-1

[Event "Fast Chess"]
[Site "ChessKid.com"]
[Date "2020.05.07"]
[Round "1"]
[White "Li, Tobias"]
[Black "Dai, Lana"]
[Result "1-0"]
[ECO "C55"]
[WhiteElo "1342"]
[BlackElo "1290"]
[PlyCount "97"]
[EventDate "2020.??.??"]
[TimeControl "600"]
[WhiteClock "0:01:03"]
[BlackClock "0:03:57"]

1. e4 {[%emt 0:00:02]} e5 {[%emt 0:00:01]} 2. Nf3 {[%emt 0:00:01]} Nc6 {
[%emt 0:00:01]} 3. Nc3 {[%emt 0:00:01]} Nf6 {[%emt 0:00:01]} 4. Bc4 {[%emt 0:
00:01]} h6 {[%emt 0:00:02]} 5. O-O {[%emt 0:00:01]} a6 {[%emt 0:00:01]} 6. h3 {
[%emt 0:00:00]} b5 {[%emt 0:00:01]} 7. Bb3 {[%emt 0:00:02]} Bc5 {[%emt 0:00:05]
} 8. a3 {[%emt 0:00:03]} d6 {[%emt 0:00:08]} 9. Nd5 {[%emt 0:00:02]} Nxd5 {
[%emt 0:00:02]} 10. Bxd5 {[%emt 0:00:01]} Bd7 {[%emt 0:00:08]} 11. b4 {[%emt 0:
00:06]} Bb6 {[%emt 0:00:10]} 12. d3 {[%emt 0:00:03]} O-O {[%emt 0:00:05]} 13.
Bd2 {[%emt 0:00:00]} Rb8 {[%emt 0:00:06]} 14. Bxc6 {[%emt 0:00:06]} Bxc6 {
[%emt 0:00:03]} 15. Qc1 {[%emt 0:00:01]} d5 {[%emt 0:00:28]} 16. exd5 {[%emt 0:
00:04]} Bxd5 {[%emt 0:00:06]} 17. Nxe5 {[%emt 0:00:02]} Qd6 {[%emt 0:00:15]}
18. Bf4 {[%emt 0:00:11]} Qd8 {[%emt 0:00:15]} 19. Ng4 {[%emt 0:00:17]} Bd4 {
[%emt 0:00:05]} 20. c3 {[%emt 0:00:09]} Bf6 {[%emt 0:00:15]} 21. Nxf6+ {
[%emt 0:00:04]} Qxf6 {[%emt 0:00:01]} 22. Bxc7 {[%emt 0:00:05]} Rbc8 {[%emt 0:
00:01]} 23. Bg3 {[%emt 0:00:02]} Qg6 {[%emt 0:00:08]} 24. Rd1 {[%emt 0:00:13]}
Rc7 {[%emt 0:00:06]} 25. a4 {[%emt 0:00:24]} bxa4 {[%emt 0:00:04]} 26. Rxa4 {
[%emt 0:00:04]} Rd7 {[%emt 0:00:28]} 27. Ra5 {[%emt 0:00:10]} Bb7 {[%emt 0:00:
08]} 28. Qe3 {[%emt 0:00:24]} Qc6 {[%emt 0:00:18]} 29. f3 {[%emt 0:00:10]} Rdd8
{[%emt 0:00:52]} 30. Ra3 {[%emt 0:00:17]} Rfe8 {[%emt 0:00:06]} 31. Qf2 {
[%emt 0:00:15]} Re7 {[%emt 0:00:19]} 32. Bh4 {[%emt 0:00:06]} g5 {[%emt 0:00:
10]} 33. Bg3 {[%emt 0:00:02]} Rde8 {[%emt 0:00:03]} 34. Qf1 {[%emt 0:00:21]}
Qb6+ {[%emt 0:00:08]} 35. Bf2 {[%emt 0:00:09]} Qc6 {[%emt 0:00:20]} 36. Bc5 {
[%emt 0:00:06]} Re2 {[%emt 0:00:22]} 37. Bf2 {[%emt 0:00:11]} R8e7 {[%emt 0:00:
49]} 38. Re1 {[%emt 0:00:05]} Rxe1 {[%emt 0:00:03]} 39. Bxe1 {[%emt 0:00:03]}
Qb6+ {[%emt 0:00:13]} 40. Bf2 {[%emt 0:00:04]} Qc6 {[%emt 0:00:10]} 41. Bc5 {
[%emt 0:00:08]} Re5 {[%emt 0:00:18]} 42. Bd4 {[%emt 0:00:06]} Re8 {[%emt 0:00:
12]} 43. Kh1 {[%emt 0:00:32]} Qd6 {[%emt 0:00:19]} 44. Kg1 {[%emt 0:00:08]} h5
{[%emt 0:00:19]} 45. Ra1 {[%emt 0:00:15]} h4 {[%emt 0:00:06]} 46. Re1 {[%emt 0:
00:04]} Rxe1 {[%emt 0:00:15]} 47. Qxe1 {[%emt 0:00:01]} Bc6 {[%emt 0:00:09]}
48. Qe5 {[%emt 0:00:18]} Qg6 {[%emt 0:00:13]} 49. Qh8# {[%emt 0:00:05]
OnlyHungryKiwi won by checkmate} 1-0

[Event "Fast Chess"]
[Site "ChessKid.com"]
[Date "2020.05.07"]
[Round "1"]
[White "Li, Patrick"]
[Black "Horvath, Alexander"]
[Result "0-1"]
[ECO "C55"]
[WhiteElo "1210"]
[BlackElo "1316"]
[PlyCount "30"]
[EventDate "2020.??.??"]
[TimeControl "600"]
[WhiteClock "0:09:19"]
[BlackClock "0:09:04"]

1. e4 {[%emt 0:00:02]} e5 {[%emt 0:00:02]} 2. Nf3 {[%emt 0:00:01]} Nf6 {
[%emt 0:00:01]} 3. Nc3 {[%emt 0:00:02]} Nc6 {[%emt 0:00:02]} 4. Bc4 {[%emt 0:
00:01]} Nxe4 {[%emt 0:00:04]} 5. Bxf7+ {[%emt 0:00:05]} Kxf7 {[%emt 0:00:02]}
6. Nxe4 {[%emt 0:00:03]} d5 {[%emt 0:00:03]} 7. Nc5 {[%emt 0:00:05]} e4 {
[%emt 0:00:03]} 8. Ng5+ {[%emt 0:00:05]} Qxg5 {[%emt 0:00:03]} 9. d4 {[%emt 0:
00:01]} Qxg2 {[%emt 0:00:01]} 10. Rf1 {[%emt 0:00:12]} Bxc5 {[%emt 0:00:03]}
11. dxc5 {[%emt 0:00:02]} Bh3 {[%emt 0:00:01]} 12. Qh5+ {[%emt 0:00:10]} Kf8 {
[%emt 0:00:08]} 13. Qxd5 {[%emt 0:00:02]} Qxf1+ {[%emt 0:00:03]} 14. Kd2 {
[%emt 0:00:02]} Rd8 {[%emt 0:00:03]} 15. Qxd8+ {[%emt 0:00:04]} Nxd8 {[%emt 0:
00:02] KeenOrangeTeeth won by resignation} 0-1

[Event "Fast Chess"]
[Site "ChessKid.com"]
[Date "2020.05.07"]
[Round "2"]
[White "Horvath, Alexander"]
[Black "Li, Tobias"]
[Result "1/2-1/2"]
[ECO "C55"]
[WhiteElo "1317"]
[BlackElo "1341"]
[Annotator "Patt"]
[PlyCount "114"]
[EventDate "2020.??.??"]
[TimeControl "600"]
[WhiteClock "0:06:29"]
[BlackClock "0:07:27"]

1. e4 {[%emt 0:00:03]} e5 {[%emt 0:00:01]} 2. Nf3 {[%emt 0:00:03]} Nc6 {
[%emt 0:00:03]} 3. Bc4 {[%emt 0:00:02]} Bc5 {[%emt 0:00:02]} 4. Nc3 {[%emt 0:
00:03]} Nf6 {[%emt 0:00:01]} 5. Bb3 {[%emt 0:00:01]} O-O {[%emt 0:00:04]} 6.
O-O {[%emt 0:00:03]} d6 {[%emt 0:00:06]} 7. Ng5 {[%emt 0:00:10]} h6 {[%emt 0:
00:06]} 8. Nxf7 {[%emt 0:00:01]} Rxf7 {[%emt 0:00:04]} 9. Bxf7+ {[%emt 0:00:00]
} Kxf7 {[%emt 0:00:02]} 10. Re1 {[%emt 0:00:04]} Ng4 {[%emt 0:00:04]} 11. h3 {
[%emt 0:00:08]} Bxf2+ {[%emt 0:00:05]} 12. Kf1 {[%emt 0:00:02]} Bxe1 {[%emt 0:
00:04]} 13. Kxe1 {[%emt 0:00:01]} Nf6 {[%emt 0:00:03]} 14. d3 {[%emt 0:00:04]}
Be6 {[%emt 0:00:04]} 15. Nd5 {[%emt 0:00:02]} Nxd5 {[%emt 0:00:04]} 16. exd5 {
[%emt 0:00:00]} Bxd5 {[%emt 0:00:02]} 17. Qh5+ {[%emt 0:00:02]} Kg8 {[%emt 0:
00:06]} 18. Qg6 {[%emt 0:00:03]} Qf6 {[%emt 0:00:09]} 19. Qxf6 {[%emt 0:00:02]}
gxf6 {[%emt 0:00:03]} 20. Bxh6 {[%emt 0:00:00]} Bxg2 {[%emt 0:00:03]} 21. Kd2 {
[%emt 0:00:02]} Bxh3 {[%emt 0:00:01]} 22. Rh1 {[%emt 0:00:02]} Be6 {[%emt 0:00:
01]} 23. Rg1+ {[%emt 0:00:02]} Kf7 {[%emt 0:00:02]} 24. Rg7+ {[%emt 0:00:02]}
Ke8 {[%emt 0:00:03]} 25. Rh7 {[%emt 0:00:02]} Bc8 {[%emt 0:00:12]} 26. Rh8+ {
[%emt 0:00:03]} Kd7 {[%emt 0:00:02]} 27. Rh7+ {[%emt 0:00:01]} Kd8 {[%emt 0:00:
03]} 28. Rh8+ {[%emt 0:00:03]} Kd7 {[%emt 0:00:02]} 29. Rh7+ {[%emt 0:00:01]}
Ke6 {[%emt 0:00:01]} 30. Kc3 {[%emt 0:00:03]} Bd7 {[%emt 0:00:05]} 31. b3 {
[%emt 0:00:07]} Rg8 {[%emt 0:00:03]} 32. a4 {[%emt 0:00:03]} a6 {[%emt 0:00:03]
} 33. Kb2 {[%emt 0:00:06]} Nd8 {[%emt 0:00:23]} 34. c4 {[%emt 0:00:05]} Nf7 {
[%emt 0:00:09]} 35. Kc3 {[%emt 0:00:05]} Nxh6 {[%emt 0:00:05]} 36. Rxh6 {
[%emt 0:00:01]} Rb8 {[%emt 0:00:09]} 37. d4 {[%emt 0:00:03]} exd4+ {[%emt 0:00:
02]} 38. Kxd4 {[%emt 0:00:02]} c5+ {[%emt 0:00:03]} 39. Ke4 {[%emt 0:00:02]}
Bc6+ {[%emt 0:00:04]} 40. Kf4 {[%emt 0:00:02]} Rg8 {[%emt 0:00:14]} 41. Ke3 {
[%emt 0:00:05]} Rg3+ {[%emt 0:00:04]} 42. Kf2 {[%emt 0:00:02]} Rxb3 {[%emt 0:
00:02]} 43. Rh8 {[%emt 0:00:03]} Rb4 {[%emt 0:00:03]} 44. a5 {[%emt 0:00:02]}
Rxc4 {[%emt 0:00:03]} 45. Ke3 {[%emt 0:00:05]} Ra4 {[%emt 0:00:03]} 46. Rh4 {
[%emt 0:00:04]} Rxh4 {[%emt 0:00:02]} 47. Kf2 {[%emt 0:00:08]} Rd4 {[%emt 0:00:
02]} 48. Ke3 {[%emt 0:00:01]} c4 {[%emt 0:00:01]} 49. Kxd4 {[%emt 0:00:02]} Bb5
{[%emt 0:00:02]} 50. Kc3 {[%emt 0:00:01]} f5 {[%emt 0:00:03]} 51. Kd2 {[%emt 0:
00:02]} f4 {[%emt 0:00:01]} 52. Ke2 {[%emt 0:00:01]} c3+ {[%emt 0:00:01]} 53.
Kd1 {[%emt 0:00:02]} f3 {[%emt 0:00:01]} 54. Kc2 {[%emt 0:00:02]} f2 {[%emt 0:
00:01]} 55. Kxc3 {[%emt 0:00:00]} f1=Q {[%emt 0:00:01]} 56. Kd2 {[%emt 0:00:01]
} Qd3+ {[%emt 0:00:01]} 57. Ke1 {[%emt 0:00:01]} Qc2 {[%emt 0:00:01] Game
drawn by stalemate} 1/2-1/2

[Event "Fast Chess"]
[Site "ChessKid.com"]
[Date "2020.05.07"]
[Round "3"]
[White "Li, Tobias"]
[Black "Li, Patrick"]
[Result "1-0"]
[ECO "C57"]
[WhiteElo "1347"]
[BlackElo "1215"]
[PlyCount "39"]
[EventDate "2020.??.??"]
[TimeControl "600"]
[WhiteClock "0:08:28"]
[BlackClock "0:08:44"]

1. e4 {[%emt 0:00:02]} e5 {[%emt 0:00:02]} 2. Nf3 {[%emt 0:00:00]} Nc6 {
[%emt 0:00:01]} 3. Bc4 {[%emt 0:00:02]} Nf6 {[%emt 0:00:00]} 4. Ng5 {[%emt 0:
00:02]} d5 {[%emt 0:00:04]} 5. exd5 {[%emt 0:00:01]} Nxd5 {[%emt 0:00:02]} 6.
Nxf7 {[%emt 0:00:01]} Kxf7 {[%emt 0:00:04]} 7. Qf3+ {[%emt 0:00:02]} Ke8 {
[%emt 0:00:02]} 8. Bxd5 {[%emt 0:00:01]} Qe7 {[%emt 0:00:12]} 9. Bxc6+ {
[%emt 0:00:04]} bxc6 {[%emt 0:00:04]} 10. Qxc6+ {[%emt 0:00:03]} Bd7 {[%emt 0:
00:05]} 11. Qxa8+ {[%emt 0:00:01]} Kf7 {[%emt 0:00:05]} 12. Nc3 {[%emt 0:00:02]
} Qf6 {[%emt 0:00:04]} 13. O-O {[%emt 0:00:09]} Qg6 {[%emt 0:00:07]} 14. Qf3+ {
[%emt 0:00:06]} Kg8 {[%emt 0:00:07]} 15. Qd5+ {[%emt 0:00:15]} Be6 {[%emt 0:00:
04]} 16. Qxe5 {[%emt 0:00:09]} Bh3 {[%emt 0:00:06]} 17. Qd5+ {[%emt 0:00:03]}
Be6 {[%emt 0:00:04]} 18. Qf3 {[%emt 0:00:02]} Bb4 {[%emt 0:00:12]} 19. d3 {
[%emt 0:00:03]} Qh6 {[%emt 0:00:07]} 20. Bxh6 {[%emt 0:00:09] OnlyHungryKiwi
won by resignation} 1-0

[Event "Fast Chess"]
[Site "ChessKid.com"]
[Date "2020.05.07"]
[Round "3"]
[White "Dai, Lana"]
[Black "Horvath, Alexander"]
[Result "0-1"]
[ECO "C47"]
[WhiteElo "1274"]
[BlackElo "1325"]
[PlyCount "100"]
[EventDate "2020.??.??"]
[TimeControl "600"]
[WhiteClock "0:05:14"]
[BlackClock "0:03:58"]

1. e4 {[%emt 0:00:03]} e5 {[%emt 0:00:01]} 2. Nc3 {[%emt 0:00:02]} Nc6 {
[%emt 0:00:02]} 3. Nf3 {[%emt 0:00:01]} Nf6 {[%emt 0:00:01]} 4. h3 {[%emt 0:00:
02]} a6 {[%emt 0:00:02]} 5. a3 {[%emt 0:00:01]} h6 {[%emt 0:00:01]} 6. Bc4 {
[%emt 0:00:04]} Nxe4 {[%emt 0:00:05]} 7. Nxe4 {[%emt 0:00:02]} d5 {[%emt 0:00:
02]} 8. Bd3 {[%emt 0:00:12]} dxe4 {[%emt 0:00:02]} 9. Bxe4 {[%emt 0:00:01]} Bd6
{[%emt 0:00:06]} 10. O-O {[%emt 0:00:07]} O-O {[%emt 0:00:02]} 11. d3 {[%emt 0:
00:03]} Nd4 {[%emt 0:00:05]} 12. Nxd4 {[%emt 0:00:10]} exd4 {[%emt 0:00:00]}
13. c3 {[%emt 0:00:14]} dxc3 {[%emt 0:00:03]} 14. bxc3 {[%emt 0:00:01]} c5 {
[%emt 0:00:09]} 15. d4 {[%emt 0:00:06]} cxd4 {[%emt 0:00:03]} 16. cxd4 {
[%emt 0:00:01]} Qf6 {[%emt 0:00:16]} 17. a4 {[%emt 0:00:23]} Qh4 {[%emt 0:00:
22]} 18. Qe2 {[%emt 0:00:22]} Bxh3 {[%emt 0:00:25]} 19. gxh3 {[%emt 0:00:15]}
Qxh3 {[%emt 0:00:00]} 20. f3 {[%emt 0:00:16]} Rfe8 {[%emt 0:00:08]} 21. Qg2 {
[%emt 0:00:29]} Qh5 {[%emt 0:00:15]} 22. Kf2 {[%emt 0:00:17]} Qh4+ {[%emt 0:00:
07]} 23. Kg1 {[%emt 0:00:05]} Re6 {[%emt 0:00:39]} 24. Be3 {[%emt 0:00:20]} b6
{[%emt 0:00:11]} 25. Bf2 {[%emt 0:00:02]} Qe7 {[%emt 0:00:16]} 26. Bxa8 {
[%emt 0:00:06]} Rg6 {[%emt 0:00:02]} 27. Rfe1 {[%emt 0:00:15]} Rxg2+ {[%emt 0:
00:04]} 28. Kxg2 {[%emt 0:00:04]} Qg5+ {[%emt 0:00:02]} 29. Kf1 {[%emt 0:00:07]
} b5 {[%emt 0:00:06]} 30. Ke2 {[%emt 0:00:06]} bxa4 {[%emt 0:00:05]} 31. Rxa4 {
[%emt 0:00:18]} Qb5+ {[%emt 0:00:02]} 32. Kd2 {[%emt 0:00:07]} Qxa4 {[%emt 0:
00:04]} 33. Re8+ {[%emt 0:00:02]} Qxe8 {[%emt 0:00:03]} 34. Be4 {[%emt 0:00:06]
} Bf4+ {[%emt 0:00:08]} 35. Kd3 {[%emt 0:00:06]} Qb5+ {[%emt 0:00:04]} 36. Kc2
{[%emt 0:00:06]} Qe2+ {[%emt 0:00:03]} 37. Kc3 {[%emt 0:00:04]} Qxf2 {[%emt 0:
00:02]} 38. Bd3 {[%emt 0:00:01]} Qd2+ {[%emt 0:00:06]} 39. Kc4 {[%emt 0:00:01]}
g6 {[%emt 0:00:04]} 40. d5 {[%emt 0:00:01]} Kf8 {[%emt 0:00:05]} 41. Be4 {
[%emt 0:00:08]} Ke8 {[%emt 0:00:08]} 42. Kc5 {[%emt 0:00:05]} Kd8 {[%emt 0:00:
02]} 43. Kc6 {[%emt 0:00:02]} a5 {[%emt 0:00:02]} 44. d6 {[%emt 0:00:17]} Qxd6+
{[%emt 0:00:03]} 45. Kb7 {[%emt 0:00:05]} a4 {[%emt 0:00:02]} 46. Bb1 {[%emt 0:
00:06]} Qb4+ {[%emt 0:00:01]} 47. Ka6 {[%emt 0:00:05]} Qxb1 {[%emt 0:00:03]}
48. Ka5 {[%emt 0:00:03]} a3 {[%emt 0:00:02]} 49. Ka4 {[%emt 0:00:02]} a2 {
[%emt 0:00:01]} 50. Ka3 {[%emt 0:00:02]} a1=R# {[%emt 0:00:01] KeenOrangeTeeth
won by checkmate} 0-1

[Event "Fast Chess"]
[Site "ChessKid.com"]
[Date "2020.05.08"]
[Round "1"]
[White "Li, Tobias"]
[Black "Li, Patrick"]
[Result "1-0"]
[ECO "C57"]
[WhiteElo "1363"]
[BlackElo "1237"]
[PlyCount "47"]
[EventDate "2020.??.??"]
[TimeControl "300"]
[WhiteClock "0:03:22"]
[BlackClock "0:03:16"]

1. e4 {[%emt 0:00:02]} e5 {[%emt 0:00:03]} 2. Bc4 {[%emt 0:00:03]} Nc6 {
[%emt 0:00:01]} 3. Nf3 {[%emt 0:00:02]} Nf6 {[%emt 0:00:04]} 4. Ng5 {[%emt 0:
00:02]} d5 {[%emt 0:00:04]} 5. exd5 {[%emt 0:00:03]} Nxd5 {[%emt 0:00:02]} 6.
Nxf7 {[%emt 0:00:02]} Kxf7 {[%emt 0:00:05]} 7. Qf3+ {[%emt 0:00:02]} Ke6 {
[%emt 0:00:01]} 8. Qh3+ {[%emt 0:00:04]} Kd6 {[%emt 0:00:03]} 9. Qf3 {[%emt 0:
00:09]} Ndb4 {[%emt 0:00:06]} 10. O-O {[%emt 0:00:10]} Nxc2 {[%emt 0:00:04]}
11. Qd3+ {[%emt 0:00:02]} Ke7 {[%emt 0:00:04]} 12. Qxc2 {[%emt 0:00:02]} Nd4 {
[%emt 0:00:08]} 13. Qd3 {[%emt 0:00:15]} Nf5 {[%emt 0:00:08]} 14. Qe4 {[%emt 0:
00:11]} Nd6 {[%emt 0:00:17]} 15. Qh4+ {[%emt 0:00:12]} Ke8 {[%emt 0:00:04]} 16.
Qxd8+ {[%emt 0:00:03]} Kxd8 {[%emt 0:00:01]} 17. b3 {[%emt 0:00:01]} Nxc4 {
[%emt 0:00:02]} 18. bxc4 {[%emt 0:00:01]} g6 {[%emt 0:00:07]} 19. Nc3 {[%emt 0:
00:03]} Bg7 {[%emt 0:00:00]} 20. d3 {[%emt 0:00:02]} e4 {[%emt 0:00:02]} 21.
Bd2 {[%emt 0:00:05]} exd3 {[%emt 0:00:01]} 22. Rac1 {[%emt 0:00:05]} Bxc3 {
[%emt 0:00:04]} 23. Bxc3 {[%emt 0:00:03]} Ke7 {[%emt 0:00:07]} 24. Bxh8 {
[%emt 0:00:03] OnlyHungryKiwi won by resignation} 1-0

[Event "Fast Chess"]
[Site "ChessKid.com"]
[Date "2020.05.08"]
[Round "1"]
[White "Halimi, Dorian"]
[Black "Dai, Lana"]
[Result "1/2-1/2"]
[ECO "C50"]
[WhiteElo "1204"]
[BlackElo "1272"]
[Annotator "Turm auf Reihe 7 bzw 2"]
[PlyCount "111"]
[EventDate "2020.??.??"]
[TimeControl "300"]
[WhiteClock "0:00:15"]
[BlackClock "0:02:16"]

1. e4 {[%emt 0:00:03]} e5 {[%emt 0:00:02]} 2. Nc3 {[%emt 0:00:03]} Nc6 {
[%emt 0:00:02]} 3. Nf3 {[%emt 0:00:02]} Nf6 {[%emt 0:00:01]} 4. Bc4 {[%emt 0:
00:02]} h6 {[%emt 0:00:02]} 5. a3 {[%emt 0:00:02]} a6 {[%emt 0:00:01]} 6. h3 {
[%emt 0:00:01]} b5 {[%emt 0:00:00]} 7. Bd5 {[%emt 0:00:09]} Nxd5 {[%emt 0:00:
04]} 8. Nxd5 {[%emt 0:00:02]} Bc5 {[%emt 0:00:13]} 9. O-O {[%emt 0:00:04]} O-O
{[%emt 0:00:06]} 10. d3 {[%emt 0:00:01]} d6 {[%emt 0:00:04]} 11. Qe2 {[%emt 0:
00:07]} Be6 {[%emt 0:00:03]} 12. Be3 {[%emt 0:00:05]} Bxe3 {[%emt 0:00:04]} 13.
Qxe3 {[%emt 0:00:03]} Bxd5 {[%emt 0:00:05]} 14. exd5 {[%emt 0:00:01]} Nd4 {
[%emt 0:00:18]} 15. Nxd4 {[%emt 0:00:03]} exd4 {[%emt 0:00:02]} 16. Qxd4 {
[%emt 0:00:01]} c5 $2 {[%emt 0:00:08]} 17. Qg4 $2 {[%emt 0:00:07]} a5 {[%emt 0:
00:23]} 18. Rae1 {[%emt 0:00:03]} Qc8 {[%emt 0:00:10]} 19. Qxc8 {[%emt 0:00:05]
} Raxc8 {[%emt 0:00:01]} 20. Rb1 {[%emt 0:00:02]} b4 {[%emt 0:00:03]} 21. a4 {
[%emt 0:00:02]} c4 {[%emt 0:00:07]} 22. d4 {[%emt 0:00:04]} b3 {[%emt 0:00:08]}
23. c3 {[%emt 0:00:02]} Rc7 {[%emt 0:00:09]} 24. Rfe1 {[%emt 0:00:02]} Rcc8 {
[%emt 0:00:03]} 25. Re3 {[%emt 0:00:02]} Rfe8 {[%emt 0:00:03]} 26. Rxe8+ {
[%emt 0:00:02]} Rxe8 {[%emt 0:00:01]} 27. Rd1 {[%emt 0:00:06]} f5 $2 {[%emt 0:
00:13]} 28. Kh2 $2 {[%emt 0:00:03]} f4 $2 {[%emt 0:00:03] Türme lieben Reihe
7, und ist ein schwarzer Turm dabei, dann liebt er Reihe zwei!} 29. g3 {
[%emt 0:00:02]} fxg3+ {[%emt 0:00:04]} 30. Kxg3 {[%emt 0:00:06]} Re2 {[%emt 0:
00:06]} 31. Rb1 {[%emt 0:00:05]} g5 {[%emt 0:00:04]} 32. f4 {[%emt 0:00:03]}
gxf4+ {[%emt 0:00:05]} 33. Kxf4 {[%emt 0:00:04]} Rf2+ {[%emt 0:00:04]} 34. Kg3
{[%emt 0:00:02]} Rf6 {[%emt 0:00:11]} 35. h4 {[%emt 0:00:05]} Rg6+ {[%emt 0:00:
02]} 36. Kh3 {[%emt 0:00:01]} h5 {[%emt 0:00:02]} 37. Rf1 {[%emt 0:00:02]} Kh7
{[%emt 0:00:06]} 38. Rf5 {[%emt 0:00:10]} Kh6 {[%emt 0:00:06]} 39. Rf4 {
[%emt 0:00:07]} Rg1 {[%emt 0:00:11]} 40. Rf6+ {[%emt 0:00:06]} Rg6 {[%emt 0:00:
02]} 41. Rxg6+ {[%emt 0:00:02]} Kxg6 {[%emt 0:00:01]} 42. Kg3 {[%emt 0:00:01]}
Kf5 {[%emt 0:00:06]} 43. Kf3 {[%emt 0:00:01]} Kg6 {[%emt 0:00:08]} 44. Ke4 {
[%emt 0:00:02]} Kf6 {[%emt 0:00:03]} 45. Kf4 {[%emt 0:00:02]} Kg6 {[%emt 0:00:
03]} 46. Ke4 {[%emt 0:00:01]} Kf6 {[%emt 0:00:06]} 47. Kf4 {[%emt 0:00:01]} Ke7
{[%emt 0:00:07]} 48. Kg5 {[%emt 0:00:01]} Kf7 {[%emt 0:00:04]} 49. Kxh5 {
[%emt 0:00:01]} Kf6 {[%emt 0:00:01]} 50. Kg4 {[%emt 0:00:02]} Ke7 {[%emt 0:00:
04]} 51. h5 {[%emt 0:00:01]} Kf7 {[%emt 0:00:02]} 52. Kg5 {[%emt 0:00:01]} Kg7
{[%emt 0:00:01]} 53. h6+ {[%emt 0:00:01]} Kh8 {[%emt 0:00:14]} 54. Kg6 {
[%emt 0:00:01]} Kg8 {[%emt 0:00:02]} 55. h7+ {[%emt 0:00:01]} Kh8 {[%emt 0:00:
02]} 56. Kh6 $4 {[%emt 0:00:04] Game drawn by stalemate} 1/2-1/2